bitfinex/quotes_ETHUSD_20251026
["timestamp","ask_amount","ask_price","bid_price","bid_amount"]
[1761486051830,0.4707,4088.4,4088.1,2.4460971]
[1761486052170,0.4707,4088.4,4087.9,0.64909591]
[1761486052375,0.4707,4088.4,4087.8,0.64909591]
[1761486052731,0.4707,4088.4,4087.7,2.20429591]
[1761486052732,0.02449915,4088.3,4087.7,2.20429591]
[1761486052931,0.02449915,4088.3,4087.6,0.64909591]
[1761486052932,0.1224,4088.0,4087.6,0.64909591]
[1761486053134,0.4682,4087.9,4087.7,1.6776]
[1761486053370,0.4682,4087.9,4087.6,0.64909591]
[1761486053675,0.4682,4087.9,4087.1,3.09581008]
[1761486053970,0.4682,4087.9,4087.4,2.44653813]
[1761486054570,0.4682,4087.9,4087.1,3.49192445]
[1761486054571,0.4682,4087.9,4087.2,0.64909591]
[1761486054794,0.4682,4087.9,4087.6,2.44637946]
[1761486055261,0.2195,4088.3,4087.6,2.44637946]
[1761486055463,0.6877,4088.3,4087.7,2.44636008]
[1761486055667,0.2195,4088.3,4087.7,0.4892903]
[1761486055845,0.001,4088.5,4088.2,2.4460061]
[1761486056046,0.001,4088.5,4088.3,2.44599586]
[1761486056242,0.001,4088.5,4087.6,0.64909591]
[1761486056477,0.001,4088.5,4087.7,2.44636348]
[1761486056478,0.4657,4088.4,4087.7,2.44636348]
[1761486056681,0.2235,4087.8,4087.7,2.44636348]
[1761486057742,0.2235,4088.0,4087.3,3.09565147]
[1761486057947,0.4643,4087.8,4087.5,2.44648318]
[1761486058135,0.4643,4087.8,4087.2,2.20429591]
[1761486058332,0.217,4088.3,4087.8,2.44628398]
[1761486058557,0.001,4088.5,4087.9,2.44623514]
[1761486058961,0.001,4088.5,4087.5,0.64909591]
[1761486059188,0.001,4088.5,4088.0,0.64909591]
[1761486059393,0.001,4088.5,4088.4,2.44594462]
[1761486059984,0.001,4088.5,4088.4,4.00114462]
[1761486060293,0.001,4088.5,4088.4,4.65024053]
[1761486060659,0.001,4088.5,4088.4,4.99878406]
[1761486061007,0.001,4088.5,4088.4,5.82980153]
[1761486061210,1e-08,4089.1,4089.0,2.95246571]
[1761486061376,1e-08,4089.1,4089.0,4.99842156]
[1761486061711,0.2235,4090.8,4089.9,2.44504755]
[1761486061905,0.2195,4091.2,4089.9,4.00024755]
[1761486062213,0.2195,4091.2,4089.9,5.17233263]
[1761486062364,0.2195,4091.2,4089.9,5.82152189]
[1761486062691,0.6626,4090.8,4089.9,4.72583263]
[1761486062866,0.6626,4090.8,4089.9,2.44504755]
[1761486063067,0.4335,4090.5,4089.7,0.64930731]
[1761486063268,0.2291,4090.8,4089.7,0.64930731]
[1761486063473,0.2291,4090.8,4089.6,0.64930731]
[1761486063474,0.2291,4089.8,4089.6,0.64930731]
[1761486063680,0.2291,4089.8,4089.4,0.64930731]
[1761486063877,0.2291,4089.8,4089.3,0.64930731]
[1761486064275,0.2291,4089.8,4089.2,2.44540834]
[1761486064276,0.4335,4089.7,4089.2,0.64930731]
[1761486064475,0.4335,4089.7,4089.0,0.64930731]
[1761486064675,0.4335,4089.7,4087.9,1.73683202]
[1761486064676,0.2291,4089.8,4089.1,0.64930731]
[1761486064874,0.2291,4089.8,4088.8,0.64930731]
[1761486064875,2.44537007,4089.4,4088.8,0.64930731]
[1761486065080,0.4335,4089.6,4088.7,0.64930731]
[1761486065396,0.2291,4089.8,4088.9,2.44560691]
[1761486065597,0.2291,4089.8,4088.5,0.8902888]
[1761486065598,0.6626,4089.8,4088.8,0.64930731]
[1761486065766,0.2291,4089.8,4089.0,0.64930731]
[1761486065966,0.132198,4090.0,4089.5,2.44524338]
[1761486066178,0.132198,4090.0,4089.9,2.44504755]
[1761486066918,0.132198,4090.0,4089.9,4.44674755]
[1761486067115,0.132198,4090.0,4089.9,5.31257751]
[1761486067431,0.132198,4090.0,4089.9,4.90834161]
[1761486067616,0.132198,4090.0,4089.9,6.22067157]
[1761486067823,0.132198,4090.0,4089.9,1.5552]
[1761486068522,0.580098,4090.0,4089.9,1.5552]
[1761486068700,0.132198,4090.0,4089.9,4.00024755]
[1761486069018,0.132198,4090.0,4089.9,4.64931966]
[1761486069622,0.132198,4090.0,4089.9,5.08411966]
[1761486069805,0.132198,4090.0,4089.9,5.92607569]
[1761486069987,0.132198,4090.0,4089.9,5.27700358]
[1761486070499,0.132198,4090.0,4089.9,6.14283354]
[1761486070683,0.132198,4090.0,4089.9,5.70803354]
[1761486070885,0.132198,4090.0,4089.9,4.86607751]
[1761486071086,0.132198,4090.0,4089.9,4.64912599]
[1761486072329,0.132198,4090.0,4089.9,4.00024755]
[1761486072623,0.132198,4090.0,4089.9,5.08392599]
[1761486073121,0.132198,4090.0,4089.9,5.08376645]
[1761486073326,0.132198,4090.0,4089.9,5.48844206]
[1761486073527,0.132198,4090.0,4089.9,1.5552]
[1761486073738,0.132198,4090.0,4089.9,4.12264755]
[1761486074600,0.132198,4090.0,4089.9,1.6776]
[1761486074808,0.132198,4090.0,4089.9,4.12264755]
[1761486075429,0.132198,4090.0,4089.9,1.6776]
[1761486075646,0.588198,4090.0,4089.9,1.5552]
[1761486076632,0.132198,4090.0,4089.9,1.5552]
[1761486076821,0.588198,4090.0,4089.9,1.5552]
[1761486077233,0.588198,4090.0,4089.7,0.1224]
[1761486077438,0.2193,4089.8,4089.6,2.44518815]
[1761486077641,0.2193,4089.8,4089.5,4.00046871]
[1761486077945,0.685,4089.8,4089.5,1.5552]
[1761486078132,0.685,4089.8,4089.4,0.1224]
[1761486078343,0.4657,4089.7,4089.4,1.6776]
[1761486078855,0.4657,4089.7,4089.4,2.56774134]
[1761486079834,0.4657,4089.7,4089.4,0.1224]
[1761486080144,0.4657,4089.7,4089.2,2.44546429]
[1761486080329,0.5881,4089.7,4089.2,2.56786429]
[1761486080540,0.5881,4089.7,4089.3,1.5552]
[1761486080739,0.4657,4089.6,4089.2,0.1224]
[1761486080936,0.50688,4089.5,4089.1,0.002]
[1761486081134,2.5678661,4089.2,4089.1,0.002]
[1761486081466,0.1224,4089.2,4089.1,0.002]
[1761486081617,0.5881,4089.2,4089.1,0.002]
[1761486084048,3.0335661,4089.2,4089.1,0.002]
[1761486084348,0.5881,4089.2,4089.1,0.002]
[1761486085455,3.05806525,4089.2,4089.1,0.002]
[1761486085934,3.40840061,4089.2,4089.1,0.002]
[1761486086114,0.93843536,4089.2,4089.1,0.002]
[1761486086320,0.5881,4089.2,4089.1,0.002]
[1761486087226,3.0335661,4089.2,4089.1,0.002]
[1761486087427,3.05806525,4089.2,4089.1,0.002]
[1761486087967,3.44254525,4089.2,4089.1,0.002]
[1761486088355,3.19420842,4089.2,4089.1,0.002]
[1761486088665,0.2193,4089.8,4089.1,0.002]
[1761486088847,2.66441898,4089.8,4089.1,0.002]
[1761486089049,2.66441898,4089.8,4089.2,2.44546433]
[1761486089050,0.2193,4089.8,4089.2,2.44546433]
[1761486089375,0.132198,4090.0,4089.3,1.57965406]
[1761486090068,0.132198,4090.0,4089.6,2.44520084]
[1761486090240,0.132198,4090.0,4089.7,0.02445167]
[1761486091368,0.2209,4089.8,4089.2,4.00062227]
[1761486091577,0.2209,4089.8,4089.1,1.5572]
[1761486091578,0.2209,4089.8,4089.3,2.44539273]
[1761486091776,0.2209,4089.8,4089.5,2.44527304]
[1761486092086,0.2209,4089.8,4089.4,2.44533134]
[1761486092584,0.132198,4090.0,4089.4,2.4453465]
[1761486093453,0.132198,4090.0,4089.5,0.02445286]
[1761486093689,0.132198,4090.0,4089.5,2.44526949]
[1761486093982,0.132198,4090.0,4089.4,1.5552]
[1761486094283,0.132198,4090.0,4089.5,2.4452867]
[1761486094489,0.132198,4090.0,4089.4,0.1777]
[1761486094689,0.132198,4090.0,4089.9,2.44504755]
[1761486095089,0.10306325,4090.0,4089.9,2.44504755]
[1761486095386,4.11848616,4091.4,4090.6,2.44462459]
[1761486095587,4.11848616,4091.4,4089.9,0.4348]
[1761486095588,1.67428518,4091.4,4090.0,2.01444987]
[1761486095759,2.44421566,4091.3,4090.5,2.44464382]
[1761486095957,2.44427062,4091.2,4090.4,2.44469733]
[1761486096181,4.11844835,4091.4,4090.1,0.2198]
[1761486096520,2.44437401,4091.1,4090.3,2.44480465]
[1761486097032,0.41184484,4091.3,4090.1,0.2198]
[1761486097319,2.4445935,4090.7,4090.0,2.44498102]
[1761486097685,2.4445935,4090.7,4089.9,2.44504332]
[1761486097884,0.1224,4090.6,4090.0,0.1224]
[1761486098333,0.1224,4090.6,4090.1,1.5552]
[1761486098632,0.1224,4090.6,4090.0,1.6776]
[1761486098838,0.1224,4090.6,4090.1,0.65928927]
[1761486099132,0.1224,4090.6,4090.3,2.44475755]
[1761486099334,0.1224,4090.6,4090.2,2.44485623]
[1761486099481,0.1224,4090.6,4090.0,0.1224]
[1761486100213,0.1224,4090.6,4090.1,1.5552]
[1761486100428,0.1224,4090.6,4090.3,2.4447971]
[1761486100732,0.1224,4090.6,4090.3,2.44476541]
[1761486101702,0.1224,4090.6,4090.5,2.44468891]
[1761486102003,2.44422241,4091.3,4090.5,2.44468891]
[1761486102202,0.1224,4090.9,4090.6,2.44461633]
[1761486102912,0.1224,4090.9,4090.3,2.56718276]
[1761486105211,0.1224,4090.9,4090.4,2.44474867]
[1761486105531,0.41185076,4091.2,4090.2,2.44480879]
[1761486105720,0.1224,4090.6,4090.2,2.44480879]
[1761486106309,0.37908556,4090.6,4090.0,0.1224]
[1761486106515,0.1224,4090.1,4089.8,2.44510417]
[1761486106736,0.1231,4089.9,4089.4,0.6487189]
[1761486107029,0.1224,4089.8,4089.4,0.6487189]
[1761486107239,0.1224,4089.8,4089.5,2.44523921]
[1761486107437,0.1224,4089.8,4089.3,1.0938189]
[1761486107627,0.1224,4089.8,4089.2,1.6776]
[1761486107628,0.1224,4089.8,4089.2,0.1224]
[1761486107928,0.1224,4089.8,4089.6,2.44520964]
[1761486108124,0.1231,4090.2,4089.8,2.44510734]
[1761486108326,0.1231,4090.2,4089.8,2.44508039]
[1761486108631,0.1231,4090.2,4089.9,2.44503786]
[1761486108822,2.95123491,4091.1,4089.6,0.4451]
[1761486109023,0.1231,4090.5,4090.0,2.44493605]
[1761486109433,0.1231,4090.5,4090.1,2.44492115]
[1761486109637,0.1231,4090.5,4089.8,2.44509017]
[1761486109809,2.56779133,4090.5,4089.8,2.44509017]
[1761486110139,0.1231,4090.5,4089.7,2.44515254]
[1761486110335,0.25677323,4090.4,4089.8,2.44510432]
[1761486110635,0.25677323,4090.4,4089.7,4.00035329]
[1761486110936,2.44484831,4090.3,4089.1,0.8705189]
[1761486111263,2.44484831,4090.3,4089.6,2.44522688]
[1761486111418,2.70154007,4090.4,4089.6,2.44522688]
[1761486111744,0.28245046,4090.3,4089.7,2.44515905]
[1761486112050,0.28245046,4090.3,4089.6,2.44521802]
[1761486112232,0.28245046,4090.3,4089.4,2.44534413]
[1761486112614,0.28245046,4090.3,4089.7,2.44516154]
[1761486112847,0.28245046,4090.3,4089.9,2.44504197]
[1761486113052,0.50688,4090.4,4089.8,2.44508956]
[1761486113835,0.50688,4090.4,4089.6,2.44521985]
[1761486113836,0.1231,4090.5,4089.9,2.44501379]
[1761486114368,0.1231,4090.5,4090.0,2.44497216]
[1761486114574,0.1231,4090.5,4089.9,2.44504109]
[1761486114775,2.56779312,4090.5,4089.3,0.4451]
[1761486115052,0.1231,4090.5,4089.8,2.44510506]
[1761486115551,0.1231,4090.5,4089.9,2.4450419]
[1761486115752,0.1231,4090.5,4090.0,2.44495396]
[1761486115957,0.1231,4090.5,4089.9,2.44503804]
[1761486116674,0.1231,4090.5,4089.9,2.44499079]
[1761486117023,0.1231,4090.5,4089.6,0.0008]
[1761486117218,0.1231,4090.5,4090.1,2.44487348]
[1761486117523,0.1231,4090.5,4090.2,2.44481902]
[1761486118142,0.1224,4090.3,4090.2,2.44481902]
[1761486118344,0.1224,4090.3,4090.1,2.4449098]
[1761486118957,0.1224,4090.3,4089.7,0.29156505]
[1761486119186,0.1224,4090.3,4090.0,2.44494747]
[1761486119358,0.1224,4090.3,4090.1,2.44492067]
[1761486120075,0.1224,4090.3,4090.2,2.44486822]
[1761486120547,0.1231,4090.8,4090.6,2.44459369]
[1761486120755,1.77328518,4091.4,4090.9,2.44439273]
[1761486121084,0.1224,4090.9,4090.2,0.1224]
[1761486121277,0.50688,4091.2,4090.0,0.6487189]
[1761486121476,0.1224,4090.5,4090.4,2.44474867]
[1761486123085,0.1224,4090.5,4090.2,2.44482558]
[1761486123086,1.67428518,4091.4,4090.7,2.44452578]
[1761486123373,0.28436137,4091.3,4090.8,2.44448858]
[1761486123577,0.28436137,4091.3,4090.9,2.44443463]
[1761486124543,0.28436137,4091.3,4091.0,2.4443724]
[1761486124738,0.18516137,4091.3,4090.7,2.4445533]
[1761486124947,1.67428518,4091.4,4090.7,2.4445533]
[1761486125277,0.50688,4091.3,4090.2,0.6487189]
[1761486125457,0.60608,4091.3,4090.3,0.02444808]
[1761486125660,0.0992,4091.3,4090.3,0.02444808]
[1761486125849,1.67428518,4091.4,4091.0,2.44433174]
[1761486126544,0.60608,4091.3,4090.1,0.6487189]
[1761486126750,0.50688,4091.2,4090.3,2.44475932]
[1761486126951,0.50688,4091.2,4090.3,2.44475183]
[1761486126952,0.60608,4091.2,4090.3,2.44475183]
[1761486127145,0.0992,4091.1,4090.3,2.44477618]
[1761486127758,0.0992,4091.1,4089.9,0.6487189]
[1761486128079,0.0992,4091.1,4090.2,2.4448223]
[1761486128080,0.50688,4090.9,4090.2,2.4448223]
[1761486128374,0.50688,4090.8,4090.0,2.44498762]
[1761486128743,0.50688,4090.6,4089.6,0.6495189]
[1761486128947,0.0992,4090.7,4090.1,2.44491353]
[1761486129180,0.0992,4090.7,4089.6,0.6495189]
[1761486129383,0.50688,4091.1,4089.8,4.00030734]
[1761486129686,0.50568,4091.1,4090.1,2.44492799]
[1761486129867,0.60488,4091.1,4090.4,2.44472324]
[1761486130049,0.0992,4091.0,4090.5,2.44468834]
[1761486130251,0.0992,4091.0,4090.4,2.44473071]
[1761486130473,0.0992,4091.0,4089.9,0.6487189]
[1761486130474,0.0992,4091.0,4089.9,2.2039189]
[1761486130654,0.0992,4091.0,4090.5,2.44463284]
[1761486131072,0.0992,4091.0,4090.1,2.44492581]
[1761486131474,0.0992,4091.0,4089.9,0.6487189]
[1761486131671,0.50688,4090.9,4090.4,2.44471299]
[1761486131869,0.50688,4090.9,4090.5,2.44466246]
[1761486132070,0.50688,4090.9,4090.6,2.44457925]
[1761486132460,0.60608,4090.9,4090.1,2.44487121]
[1761486132665,0.60608,4090.9,4090.6,2.44461738]
[1761486132863,1.67428518,4091.4,4090.6,0.24446174]
[1761486133086,1.67428518,4091.4,4091.3,2.44421088]
[1761486133590,1.79668518,4091.4,4091.3,2.44421088]
[1761486134775,1.79668518,4091.4,4090.8,0.7711189]
[1761486134776,1.79668518,4091.4,4090.8,0.1224]
[1761486135082,1.79668518,4091.4,4091.3,2.44421088]
[1761486135452,1.67428518,4091.4,4091.3,4.45661088]
[1761486135648,1.67428518,4091.4,4091.3,5.10532978]
[1761486136081,1.67428518,4091.4,4091.3,4.88713404]
[1761486136282,1.67428518,4091.4,4091.3,5.22882871]
[1761486136590,1.67428518,4091.4,4091.3,5.64853422]
[1761486136887,1.67428518,4091.4,4091.3,6.10573422]
[1761486137260,1.67428518,4091.4,4091.3,5.45591639]
[1761486137479,1.67428518,4091.4,4091.3,6.10573422]
[1761486137662,1.67428518,4091.4,4091.3,5.45591639]
[1761486137870,0.001,4091.9,4091.8,2.44391221]
[1761486141292,0.001,4091.9,4091.3,0.87690551]
[1761486141497,0.112,4091.9,4091.8,2.44391221]
[1761486142123,0.001,4091.9,4091.8,2.44391221]
[1761486143632,0.001,4091.9,4091.0,2.44439012]
[1761486143633,0.50688,4091.8,4091.0,2.44439012]
[1761486143816,0.50688,4091.8,4090.8,1.5552]
[1761486144142,0.50688,4091.8,4091.4,2.4441085]
[1761486144638,0.50688,4091.8,4091.5,2.44407852]
[1761486144935,0.50688,4091.8,4091.6,2.44402125]
[1761486145338,0.50688,4091.8,4091.5,2.44403963]
[1761486145505,0.50688,4091.8,4091.0,1.5552]
[1761486145705,0.001,4091.9,4091.0,0.58943989]
[1761486146049,0.001,4091.9,4091.7,2.44391616]
[1761486146345,0.001,4091.9,4091.6,2.44401961]
[1761486146549,0.001,4091.9,4090.9,2.44444987]
[1761486146550,0.001,4091.9,4090.8,0.4572]
[1761486146750,0.50688,4091.8,4091.4,2.44410623]
[1761486146916,0.50688,4091.8,4091.3,2.44416468]
[1761486147112,0.0995,4091.7,4091.3,2.44417214]
[1761486147334,0.0995,4091.7,4091.3,2.44415206]
[1761486147539,0.0995,4091.7,4091.4,2.44411608]
[1761486147947,0.0995,4091.7,4091.3,2.44419392]
[1761486148124,0.0995,4091.7,4091.4,2.44414408]
[1761486148315,0.0995,4091.7,4091.3,3.99939994]
[1761486148517,0.1121,4090.8,4090.2,0.64936124]
[1761486148831,0.1121,4090.8,4090.5,2.44465058]
[1761486149028,0.1121,4090.8,4090.4,2.44474321]
[1761486149229,0.1224,4090.6,4090.5,2.44468891]
[1761486149520,0.62928,4090.6,4090.1,1.5552]
[1761486149717,0.50688,4090.5,4090.4,2.44474867]
[1761486150160,0.50688,4090.7,4090.5,2.44468683]
[1761486150462,0.50688,4090.7,4090.6,2.44462914]
[1761486150767,0.50688,4090.7,4090.3,2.44476701]
[1761486150935,0.50688,4090.7,4089.9,1.5552]
[1761486151120,0.50688,4090.7,4090.6,2.44462914]
[1761486151566,0.62928,4090.7,4090.5,2.4446754]
[1761486151860,0.50688,4090.7,4090.5,2.4446754]
[1761486152023,0.50688,4090.7,4090.6,2.44462914]
[1761486152424,0.62928,4090.7,4090.5,2.4446803]
[1761486152758,0.50688,4090.7,4090.5,2.4446803]
[1761486152941,0.50688,4090.7,4090.6,2.44462914]
[1761486153148,0.62928,4090.7,4090.6,2.44462914]
[1761486154968,0.62928,4090.7,4090.5,2.44468781]
[1761486155264,0.62928,4090.7,4090.6,2.44462914]
[1761486155475,0.1121,4090.8,4090.6,2.44462914]
[1761486155767,0.1224,4090.7,4090.6,2.44462914]
[1761486156260,0.1224,4090.7,4090.6,2.93356599]
[1761486156458,0.1224,4091.2,4091.1,2.44433037]
[1761486156648,0.1224,4091.2,4090.6,0.61133685]
[1761486156851,0.001,4091.4,4090.6,0.48893685]
[1761486157051,0.1224,4090.8,4090.7,2.44456938]
[1761486157464,0.001,4091.4,4091.3,2.44421088]
[1761486157831,0.001,4091.4,4091.3,3.55077212]
[1761486158237,0.001,4091.4,4091.3,2.90141088]
[1761486158842,0.001,4091.4,4091.3,4.45661088]
[1761486159049,0.001,4091.4,4091.3,5.23464694]
[1761486159738,0.001,4091.4,4091.3,4.77744694]
[1761486161071,0.001,4091.4,4091.0,0.64936124]
[1761486161372,0.001,4091.4,4090.7,1.08032996]
[1761486161373,0.001,4091.4,4091.3,2.44421088]
[1761486161739,0.001,4091.4,4091.2,2.44426445]
[1761486162670,0.001,4091.4,4091.1,2.44432842]
[1761486162873,0.0994,4091.3,4090.7,1.5552]
[1761486163078,0.50688,4091.2,4090.7,1.5552]
[1761486163374,0.001,4091.4,4090.6,0.64936124]
[1761486163536,0.001,4091.4,4091.3,2.44421088]
[1761486164479,0.001,4091.4,4091.3,2.91131088]
[1761486164643,0.001,4091.4,4091.3,5.15759387]
[1761486165043,0.001,4091.4,4091.3,5.80695511]
[1761486165343,0.001,4091.4,4091.3,5.80672611]
[1761486165746,0.001,4091.4,4091.3,5.15759387]
[1761486167540,0.001,4091.4,4091.3,5.27999387]
[1761486171765,0.001,4091.4,4091.3,4.81289387]
[1761486172088,0.001,4091.4,4091.3,5.27999387]
[1761486172963,0.001,4091.4,4091.3,4.81289387]
[1761486173350,0.001,4091.4,4091.3,5.27999387]
[1761486175087,0.001,4091.4,4091.3,5.92977931]
[1761486175286,0.001,4091.4,4091.3,5.92974235]
[1761486175784,0.001,4091.4,4091.3,5.27999387]
[1761486176290,0.001,4091.4,4091.3,5.92969644]
[1761486176679,0.001,4091.4,4091.3,5.9296956]
[1761486178187,0.001,4091.4,4091.3,5.4625956]
[1761486178395,0.1234,4091.4,4091.3,4.24431088]
[1761486178693,0.1234,4091.4,4091.3,3.99941088]
[1761486179786,0.63028,4091.4,4091.3,3.99941088]
[1761486180595,0.001,4091.4,4091.3,3.99941088]
[1761486180797,0.001,4091.4,4091.3,4.70875404]
[1761486181002,0.001,4091.4,4091.3,5.17585404]
[1761486183692,0.001,4091.4,4091.3,6.164084]
[1761486183895,0.001,4091.4,4091.3,6.286484]
[1761486184373,0.001,4091.4,4091.3,5.29825404]
[1761486184570,0.001,4091.4,4091.3,6.16702822]
[1761486185375,0.001,4091.4,4091.3,5.29825404]
[1761486185579,1.01429023,4092.7,4092.6,2.44343449]
[1761486185580,0.80529023,4092.7,4092.6,2.44343449]
[1761486185880,0.80529023,4092.7,4092.6,3.99863449]
[1761486186387,0.80529023,4092.7,4092.6,5.1069903]
[1761486186779,0.80529023,4092.7,4092.6,4.45513449]
[1761486187377,0.80529023,4092.7,4092.6,5.10686237]
[1761486187706,0.80529023,4092.7,4092.6,4.45513449]
[1761486187875,0.80529023,4092.7,4092.6,5.10661802]
[1761486188073,0.80529023,4092.7,4092.6,2.20668353]
[1761486188274,0.80529023,4092.7,4092.6,1.5552]
[1761486188476,0.50688,4092.6,4092.1,0.65148353]
[1761486188703,0.38545557,4092.5,4092.1,0.65148353]
[1761486188899,0.48445557,4092.5,4092.0,2.44377141]
[1761486189182,0.60588,4092.4,4091.9,0.65148353]
[1761486189581,0.50688,4092.2,4091.9,0.65148353]
[1761486189791,0.50688,4092.2,4091.8,3.09535064]
[1761486189993,0.1224,4091.9,4091.7,0.65148353]
[1761486190211,0.1224,4091.9,4091.5,0.86842933]
[1761486190212,0.1224,4091.9,4091.6,2.444024]
[1761486190412,0.2216,4091.9,4091.5,0.65148353]
[1761486190719,0.1224,4091.9,4091.5,3.09554525]
[1761486190882,0.1224,4091.9,4091.8,2.44391221]
[1761486191708,2.44336697,4092.8,4091.5,3.09554525]
[1761486191709,0.50688,4092.6,4092.0,2.4437653]
[1761486191885,0.50688,4092.6,4092.3,2.44358977]
[1761486192331,2.54241291,4093.5,4092.6,2.44343449]
[1761486192484,0.0995,4093.5,4092.6,2.44343449]
[1761486192686,2.44295965,4093.4,4092.6,2.44343449]
[1761486193008,2.94983965,4093.4,4092.6,2.44343449]
[1761486193209,0.0996,4093.4,4092.6,4.65011802]
[1761486193413,0.1121,4092.8,4092.6,2.20668353]
[1761486193610,0.1121,4092.8,4092.6,3.09491802]
[1761486193818,0.1121,4092.8,4092.6,2.44343449]
[1761486193994,0.50688,4092.6,4092.4,0.65148353]
[1761486194193,0.0997,4092.6,4092.2,0.65148353]
[1761486194399,0.1121,4092.8,4092.2,2.44365954]
[1761486194714,0.1121,4092.8,4092.2,1.5552]
[1761486195112,0.1121,4092.8,4092.1,2.20668353]
[1761486195315,0.90499023,4092.7,4092.2,2.44365251]
[1761486195516,0.90499023,4092.7,4092.1,0.65148353]
[1761486195703,0.1224,4092.4,4092.2,2.44362498]
[1761486197421,0.0997,4092.3,4091.9,0.65148353]
[1761486197587,0.1224,4092.1,4091.6,0.65148353]
[1761486198132,0.1224,4092.1,4091.5,0.1224]
[1761486198133,0.2443,4091.7,4091.5,0.65148353]
[1761486199251,0.2443,4091.7,4091.4,0.65148353]
[1761486199422,0.0475,4091.7,4091.4,0.65148353]
[1761486199624,0.1224,4091.5,4091.4,0.65148353]
[1761486199936,0.1224,4091.5,4091.3,0.002]
[1761486200107,0.49367552,4091.5,4091.3,0.002]
[1761486202051,0.60678,4091.4,4091.3,0.002]
[1761486202217,3.05093114,4091.4,4091.3,0.002]
[1761486215168,3.17333114,4091.4,4091.3,0.002]
[1761486215547,3.27113053,4091.4,4091.3,0.002]
[1761486215748,4.16509765,4091.4,4091.3,0.002]
[1761486220053,3.96739826,4091.4,4091.3,0.002]
[1761486221051,4.06729826,4091.4,4091.3,0.002]
[1761486222596,8.67609826,4091.4,4091.3,0.002]
[1761486222809,8.77390458,4091.4,4091.3,0.002]
[1761486232190,5.59790458,4091.4,4091.3,0.002]
[1761486232390,11.46630458,4091.4,4091.3,0.002]
[1761486235064,12.34277317,4091.4,4091.3,0.002]
[1761486235932,5.98999317,4091.4,4091.3,0.002]
[1761486236228,8.26602458,4091.4,4091.3,0.002]
[1761486236980,8.77290458,4091.4,4091.3,0.002]
[1761486237179,0.92496859,4091.7,4091.3,0.2382]
[1761486237180,0.001,4091.7,4091.3,0.2382]
[1761486237416,0.001,4091.7,4091.4,0.4403]
[1761486237903,0.001,4091.7,4091.4,3.5358783]
[1761486238108,0.001,4091.7,4091.5,0.4403]
[1761486238510,0.001,4091.7,4091.6,2.44403167]
[1761486238815,0.001,4091.7,4091.6,5.06134574]
[1761486239178,0.80529023,4092.7,4091.7,3.99917194]
[1761486239385,0.80529023,4092.7,4092.6,2.44343449]
[1761486239790,0.80529023,4092.7,4092.6,2.88373449]
[1761486240408,0.80529023,4092.7,4092.6,0.4403]
[1761486241416,0.33029023,4092.7,4092.6,3.17211973]
[1761486242689,0.33029023,4092.7,4092.6,0.72868524]
[1761486242889,0.33029023,4092.7,4092.6,0.4403]
[1761486243095,0.83717023,4092.7,4092.6,0.4403]
[1761486244193,0.33029023,4092.7,4092.6,2.88373449]
[1761486244393,0.33129023,4092.7,4092.6,2.88373449]
[1761486246094,0.33129023,4092.7,4092.6,4.43893449]
[1761486246300,0.33129023,4092.7,4092.6,5.24958275]
[1761486247327,0.33129023,4092.7,4092.6,5.56868725]
[1761486247827,0.33129023,4092.7,4092.6,6.22049401]
[1761486248231,1e-08,4092.7,4092.6,6.09809401]
[1761486248430,1e-08,4092.7,4092.6,5.12718275]
[1761486249117,1e-08,4092.7,4092.6,6.73497401]
[1761486249318,0.006,4095.4,4093.7,0.2153]
[1761486249519,0.006,4095.4,4093.8,0.4643]
[1761486249696,0.006,4095.4,4093.9,0.16229374]
[1761486249897,0.006,4095.4,4095.3,0.2153]
[1761486250420,0.006,4095.4,4095.1,0.2153]
[1761486251009,0.006,4095.4,4095.1,0.6796]
[1761486251438,0.006,4095.4,4095.2,2.1495]
[1761486251637,0.006,4095.4,4095.3,0.70078]
[1761486251847,0.006,4095.4,4095.3,0.4643]
[1761486252333,0.026,4096.0,4095.3,0.4643]
[1761486253745,0.50688,4095.3,4094.8,0.4643]
[1761486253914,2.44198688,4095.1,4094.1,0.4643]
[1761486254114,0.50688,4095.8,4094.1,0.4643]
[1761486254441,2.44200779,4095.0,4094.1,0.4643]
[1761486254935,2.44195271,4095.1,4094.1,0.4643]
[1761486255103,0.50688,4095.3,4094.1,0.4643]
[1761486255413,0.50688,4095.1,4093.7,0.6796]
[1761486255615,2.94924266,4094.4,4093.7,0.6796]
[1761486255837,2.44241994,4094.3,4093.7,0.6796]
[1761486256138,2.44241994,4094.3,4093.8,0.4643]
[1761486256445,0.50688,4094.3,4094.0,0.6796]
[1761486256747,0.50688,4094.6,4093.7,0.2153]
[1761486256906,1.6596,4095.4,4094.2,0.2153]
[1761486256907,2.44479277,4095.4,4094.2,0.2153]
[1761486257106,0.52494995,4095.4,4094.2,0.2153]
[1761486257305,0.50688,4094.9,4094.2,0.2153]
[1761486257539,2.94894928,4094.9,4094.2,0.6796]
[1761486257702,0.50688,4095.2,4094.2,0.6796]
[1761486257918,0.003,4095.4,4094.2,0.2153]
[1761486258118,2.44199884,4095.1,4094.3,0.4643]
[1761486258347,0.1224,4094.4,4094.3,0.4643]
[1761486259254,2.44477302,4095.4,4094.3,3.13017761]
[1761486259457,0.1224,4094.9,4094.4,2.44234603]
[1761486259764,0.1224,4094.9,4094.4,2.90664603]
[1761486260080,1.93569303,4096.1,4095.3,2.44182355]
[1761486260376,1.93569303,4096.1,4095.3,0.2153]
[1761486260576,1.93569303,4096.1,4095.4,0.8056506]
[1761486260740,1.93569303,4096.1,4095.5,1.5552]
[1761486260929,1.93569303,4096.1,4095.6,0.4643]
[1761486261126,1.93569303,4096.1,4095.7,0.20195]
[1761486261325,1.93569303,4096.1,4095.8,0.4643]
[1761486261828,1.93569303,4096.1,4095.9,1.5552]
[1761486262278,0.4643,4099.1,4095.8,2.44148862]
[1761486262430,0.2173,4097.7,4096.0,0.4643]
[1761486262938,2.44058196,4097.4,4096.1,0.2153]
[1761486263139,2.44058196,4097.4,4095.3,0.2153]
[1761486263140,0.50688,4096.2,4095.3,0.2153]
[1761486263338,0.45688,4096.0,4095.3,0.2153]